[Event "American Cup Open Champions 2024"]
[Site "Saint Louis"]
[Date "2024.03.12"]
[Round "1.1"]
[White "Caruana, Fabiano"]
[Black "Oparin, Grigoriy"]
[Result "1-0"]
[ECO "D37"]
[WhiteElo "2804"]
[BlackElo "2671"]
[PlyCount "95"]
[EventDate "2024.03.11"]
[EventType "k.o."]
[EventCountry "USA"]
[TimeControl "5400+30"]

{[%evp 24,95,33,9,13,6,17,8,34,7,18,12,18,0,32,27,100,99,95,92,98,104,106,104,107,109,139,112,141,145,154,148,166,186,166,118,260,223,208,157,263,276,284,275,449,438,421,440,387,464,456,487,426,425,485,485,485,484,466,462,436,429,523,508,813,920,909,920,29971,29971,29988,29989,29989,29990]} 1. d4 {[%emt 0:00:07]} d5 {[%emt 0:00:12]} 2. c4 {[%emt 0:00:05]} e6 {[%emt 0:00:04]} 3. Nc3 {[%emt 0:00:08]} a6 {[%emt 0:00:14]} 4. cxd5 {[%emt 0:00:30]} exd5 {[%emt 0:00:05]} 5. Nf3 {[%emt 0:00:08]} Nf6 {[%emt 0:00:12]} 6. Bg5 {[%emt 0:01:38] D37: Queen's Gambit Declined: 5 Bf4.} Be6 {[%emt 0:00:14]} 7. e3 {[%emt 0:00:07]} Nbd7 {[%emt 0:00:45]} 8. h3 {[%emt 0:00:17]} Bd6 {[%emt 0:01:33]} 9. Bd3 {[%emt 0:00:13]} c6 {[%emt 0:01:20]} 10. Bf4 {[%emt 0:01:44]} Qc7 {[%emt 0:00:26]} 11. Bxd6 {[%emt 0:02:42]} Qxd6 {[%emt 0:00:06]} 12. O-O {[%emt 0:00:16]} O-O {[%emt 0:04:12]} 13. a4 $5 {[%mdl 4] An interesting side line.} a5 {[%emt 0:08:17]} 14. Qb3 {[%emt 0:04:37]} g6 $146 {[%emt 0:08:58]} ({Predecessor:} 14... Qb4 15. Qc2 h6 16. Ne5 Nxe5 17. dxe5 Nd7 18. f4 d4 19. exd4 Qxd4+ 20. Kh1 Nc5 {½-½ Injac,T (2389)-Radeva,V (2289) EU-ch (Women) 22nd 2022 (5)}) 15. Ng5 {[%emt 0:05:26]} (15. Qxb7 $2 Rfb8 $19) 15... Rfe8 {[%emt 0:14:04]} 16. Rae1 {[%emt 0:09:54]} (16. Qxb7 $2 Reb8 $19) 16... Nf8 {[%emt 0:24:33]} 17. Qc2 {[%emt 0:05:12]} (17. Qxb7 $2 Reb8 $19) 17... Nh5 {[%emt 0:03:04]} 18. f4 {[%emt 0:06:39]} f6 {[%emt 0:04:26]} 19. Nxe6 {[%emt 0:02:35]} Rxe6 {[%emt 0:00:00]} (19... Nxe6 $11 {keeps the balance.} 20. f5 gxf5) 20. f5 $16 gxf5 {[%emt 0:04:44]} 21. Rxf5 {[%emt 0:14:45]} Ng7 {[%emt 0:00:00]} 22. Rf3 {[%emt 0:00:11]} Rae8 {[%emt 0:00:00]} 23. Qf2 {[%emt 0:03:14]} Ng6 {[%emt 0:00:22]} 24. g4 {[%emt 0:14:52]} Nh8 {[%emt 0:06:43]} 25. h4 {[%emt 0:07:30]} Nf7 {[%emt 0:04:34]} 26. g5 {[%emt 0:08:47]} f5 {[#]} 27. Ne2 $1 {[%emt 0:04:40]} (27. Bxf5 $6 Nxf5 28. Rxf5 Qd7 $14) 27... Qd7 {[%emt 0:00:56]} 28. Nf4 $1 {[%emt 0:00:00]} (28. Bxf5 $2 Nxf5 29. Rxf5 Rxe3 $19) 28... R6e7 {[%emt 0:00:08] [#]} 29. g6 $1 {[%emt 0:00:00]} hxg6 {[%emt 0:00:48]} (29... Nd6 $16 {might work better.}) 30. Nxg6 Re6 {[%emt 0:01:44]} 31. Qg2 {[%emt 0:02:25]} (31. Bxf5 $2 Nxf5 32. Qg2 Kh7 $19 (32... Rxe3 $2 33. Rexe3 Nxe3 34. Rxe3 $18) (32... Nxe3 $2 33. Rfxe3 Rxe3 34. Rxe3 $18)) 31... Nd6 {[%emt 0:04:01]} (31... Nh6 $16 32. Ne5 Rxe5 33. dxe5 Rxe5) 32. Ne5 $18 {[%emt 0:02:29]} Qe7 {[%emt 0:00:00]} 33. Bxf5 {[%emt 0:01:17]} Ndxf5 $2 {[%emt 0:01:27]} (33... Rf6) 34. Rxf5 $18 {[%emt 0:00:04]} Qxh4 {[%emt 0:00:10]} 35. Ref1 {[%emt 0:00:15]} Qe4 {[%emt 0:04:26]} 36. Qg5 {[%emt 0:00:31]} ({Weaker is} 36. Qxe4 dxe4 37. Rg5 Rf8 $18) 36... Rh6 {[%emt 0:02:27]} 37. Qxh6 {[%emt 0:01:06]} Nxf5 {[%emt 0:00:12]} 38. Qg5+ {[%emt 0:00:03]} Ng7 {[%emt 0:00:00]} 39. Ng4 {[%emt 0:02:33]} Re6 {[%emt 0:00:14]} 40. Nf6+ {[%emt 0:00:46]} Rxf6 {[%emt 0:00:06]} 41. Rxf6 {[%emt 0:00:06]} Qb1+ {[%emt 0:01:06]} 42. Rf1 {[%emt 0:01:54]} Qxb2 {[%emt 0:00:04]} 43. Qe7 {[%emt 0:00:55]} Qe2 {[%emt 0:00:02]} (43... Kh7 $142 44. Kh1 Qe2) 44. Rf8+ $18 ({And not} 44. Qxb7 Qxe3+ 45. Rf2 Qg5+ 46. Kf1 Qc1+ 47. Kg2 Qg5+ 48. Kf3 Qf5+ 49. Ke3 Qe4+ 50. Kd2 Qxd4+ 51. Ke1 Qe3+ 52. Re2 Qc1+ 53. Kf2 Qf4+ 54. Ke1 Qc1+ 55. Kf2 Qf4+ 56. Kg1 Qg3+ 57. Kf1 Qh3+ 58. Ke1 Qh4+ 59. Rf2 Qe4+ 60. Re2 Qh4+ 61. Rf2 Qe4+ 62. Re2 Qh4+ $11) 44... Kh7 {[%emt 0:00:56]} 45. Qh4+ {[%emt 0:01:00]} ({Stronger than} 45. Qxb7 Qxe3+ 46. Rf2 Qc1+ 47. Kg2 Qg5+ 48. Kf1 Qc1+ 49. Kg2 Qg5+ 50. Kf3 Qf5+ 51. Ke3 Qe4+ 52. Kd2 Qxd4+ 53. Ke1 Qe4+ 54. Kd1 Qd4+ 55. Rd2 Qxa4+ 56. Rc2 Kg8 $11) 45... Nh5 {[%emt 0:00:30]} 46. Rf2 {[%emt 0:00:00]} Qd1+ {[%emt 0:01:07]} 47. Kh2 {[%emt 0:01:09]} Kg6 {[%emt 0:00:00]} 48. Qh3 {[%emt 0:00:00]} 1-0

[Event "American Cup Open Champions 2024"]
[Site "Saint Louis"]
[Date "2024.03.12"]
[Round "1.1"]
[White "So, Wesley"]
[Black "Shankland, Sam"]
[Result "1/2-1/2"]
[ECO "A65"]
[WhiteElo "2757"]
[BlackElo "2674"]
[Annotator "TA"]
[PlyCount "86"]
[EventDate "2024.03.11"]
[EventType "k.o."]
[EventCountry "USA"]
[SourceTitle "playchess.com"]
[Source "ChessBase"]
[SourceQuality "1"]
[TimeControl "5400+30"]

{[%evp 20,86,31,31,37,14,24,16,49,47,42,26,43,9,40,35,37,20,20,22,32,31,41,19,42,13,13,9,5,20,14,0,5,0,0,0,0,0,0,0,0,0,0,-29,-22,-25,-20,-36,0,0,0,0,0,0,0,-3,0,0,0,0,0,0,0,0,0,0,0,0,0]} 1. d4 {[%emt 0:00:02]} Nf6 {[%emt 0:00:10]} 2. c4 {[%emt 0:00:12]} g6 {[%emt 0:00:06]} 3. f3 {[%emt 0:01:00]} c5 {[%emt 0:01:04]} 4. d5 {[%emt 0:00:07]} d6 {[%emt 0:00:05]} 5. e4 {[%emt 0:00:19]} e6 {[%emt 0:00:06]} 6. Ne2 {[%emt 0:00:31]} Bg7 {[%emt 0:00:12]} 7. Nbc3 {[%emt 0:00:11]} exd5 {[%emt 0:01:03]} 8. cxd5 {[%emt 0:00:05]} O-O {[%emt 0:00:05]} 9. Ng3 {[%emt 0:00:06]} a6 {[%emt 0:00:25]} 10. a4 {[%emt 0:00:19]} Nbd7 {[%emt 0:00:08]} 11. Be2 {[%emt 0:00:08]} Rb8 {[%emt 0:01:01]} 12. Bg5 {[%emt 0:03:46]} h6 {[%emt 0:02:30][%cal Bh7h6,Bh6h5,Bh5h4][%mdl 32]} 13. Bf4 {[%emt 0:01:19]} Ne5 {[%emt 0:02:56]} 14. Qd2 {[%emt 0:03:09]} h5 {[%emt 0:02:14]} 15. O-O {[%emt 0:05:06]} Nh7 {[%emt 0:08:15] Wards off Bg5} 16. Bh6 {[%emt 0:04:45]} h4 {[%emt 0:02:32]} 17. Nh1 {[%emt 0:01:04][%cal Bg3h1,Bh1f2,Bf2h3,Bh3g5,Bg5f3][%mdl 32]} f5 {[%emt 0:01:42]} 18. Bxg7 {[%emt 0:06:52]} Kxg7 {[%emt 0:00:05]} 19. f4 {[%emt 0:00:05]} Nf7 {[%emt 0:00:34]} 20. Nf2 {[%emt 0:00:20]} Nf6 {[%emt 0:01:53]} 21. Bd3 {[%emt 0:05:14]} Re8 {[%emt 0:04:47]} 22. Rae1 {[%emt 0:06:39]} Bd7 {[%emt 0:04:02]} 23. exf5 {[%emt 0:04:53] [#] Strongly threatening Rxe8.} gxf5 {[%emt 0:00:39]} 24. Rxe8 {[%emt 0:02:57]} Nxe8 {[%emt 0:02:40]} 25. Nh3 {[%emt 0:14:42]} Qf6 {[%emt 0:03:02]} 26. Kh1 {[%emt 0:01:17]} Nc7 {[%emt 0:02:09]} 27. Ng5 {[%emt 0:02:09]} Re8 {[%emt 0:06:17]} 28. Nf3 $1 {[%emt 0:05:53]} b5 {[%emt 0:11:20]} 29. axb5 {[%emt 0:00:40]} axb5 {[%emt 0:00:04]} 30. Bb1 {[%emt 0:00:10]} Nh8 {[%emt 0:05:49]} 31. g3 {[%emt 0:04:14]} hxg3 {[%emt 0:01:05]} 32. hxg3 {[%emt 0:02:27]} b4 {[%emt 0:06:27]} 33. Nd1 {[%emt 0:00:14]} Ng6 {[%emt 0:00:24]} (33... Nf7 $5) 34. Kg2 {[%emt 0:04:47] The position is equal.} Bc8 {[%emt 0:03:36]} 35. Bd3 {[%emt 0:02:33]} Nxd5 {[%emt 0:05:21] Threatening ...Bb7.} 36. Bb5 {[%emt 0:00:17][%csl LRd5,LRe8]} Ndxf4+ $1 {[%emt 0:00:04]} 37. gxf4 {[%emt 0:00:03]} Re4 {[%emt 0:00:05][%cal Oc8b7] [#] aiming for ...Bb7!} 38. Kf2 {[%emt 0:02:25]} Rxf4 {[%emt 0:01:37] Hoping for ...Bb7.} 39. Rg1 {[%emt 0:01:09]} Qh4+ {[%emt 0:08:15]} 40. Ke2 {[%emt 0:00:21]} Qe7+ {[%emt 0:01:42]} 41. Kf2 {[%emt 0:01:19] Chess con chili.} Qh4+ {[%emt 0:03:28]} 42. Ke2 {[%emt 0:01:34]} Qe7+ {[%emt 0:00:25]} 43. Kf2 {[%emt 0:00:04]} Qh4+ {[%emt 0:02:38] Weighted Error Value: White=0.04 (flawless) /Black=0.04 (flawless) .  Inaccurate:     	White=3     	Black=3      OK:         	White=13    	Black=15     Best:        	White=3     	---        Strong:       	White=1     	Black=1} 1/2-1/2

[Event "American Cup Open Champions 2024"]
[Site "Saint Louis"]
[Date "2024.03.12"]
[Round "1.1"]
[White "Dominguez Perez, Leinier"]
[Black "Robson, Ray"]
[Result "1-0"]
[ECO "B90"]
[WhiteElo "2749"]
[BlackElo "2696"]
[PlyCount "93"]
[EventDate "2024.03.11"]
[EventType "k.o."]
[EventCountry "USA"]
[TimeControl "5400+30"]

{[%evp 24,93,18,25,25,22,25,22,39,0,6,11,0,0,31,21,15,7,0,0,0,0,0,0,0,0,60,0,0,0,0,0,0,-39,-41,-27,-40,-41,23,12,16,16,166,175,437,418,468,458,533,477,535,522,536,536,522,504,1591,1250,3130,3010,29969,29960,29978,29955,29988,29981,29981,29982,29982,29983,29983,29984]} 1. e4 {[%emt 0:00:03]} c5 {[%emt 0:00:10]} 2. Nf3 {[%emt 0:00:06]} d6 {[%emt 0:00:14]} 3. d4 {[%emt 0:00:07]} cxd4 {[%emt 0:00:10]} 4. Nxd4 {[%emt 0:00:07]} Nf6 {[%emt 0:00:17]} 5. Nc3 {[%emt 0:00:03]} a6 {[%emt 0:00:13]} 6. Be3 {[%emt 0:00:40]} Ng4 {[%emt 0:00:20]} 7. Bc1 {[%emt 0:01:42]} Nf6 {[%emt 0:00:12]} 8. f3 {[%emt 0:00:07]} e5 {[%emt 0:00:23]} 9. Nb3 {[%emt 0:00:05]} Be6 {[%emt 0:00:23]} 10. Be3 {[%emt 0:00:06]} Be7 {[%emt 0:00:46]} 11. Qd2 {[%emt 0:00:12]} h5 {[%emt 0:00:21]} 12. Nd5 {[%emt 0:04:11]} Nxd5 {[%emt 0:00:31]} 13. exd5 {[%emt 0:00:03]} Bf5 {[%emt 0:00:08]} 14. Be2 {[%emt 0:01:54]} Bh4+ {[%emt 0:00:35]} 15. g3 {[%emt 0:00:11]} Be7 {[%emt 0:00:08] The position is equal.} 16. Rg1 {[%emt 0:06:17]} Nd7 {[%emt 0:03:01]} 17. O-O-O {[%emt 0:02:00]} Rc8 {[%emt 0:01:51]} 18. Bd3 {[%emt 0:02:01]} Bxd3 {[%emt 0:00:42]} 19. Qxd3 {[%emt 0:00:03]} O-O {[%emt 0:03:08]} 20. g4 {[%emt 0:02:04]} hxg4 {[%emt 0:19:07]} 21. h3 {[%emt 0:31:28]} g3 {[%emt 0:29:24]} 22. Rxg3 {[%emt 0:00:10]} f5 $1 {[%emt 0:00:54] Hoping for ...f4.} 23. Rdg1 {[%emt 0:05:54]} Rf7 {[%emt 0:00:32]} 24. Bg5 {[%emt 0:00:13]} e4 {[%emt 0:07:26]} 25. fxe4 {[%emt 0:10:01]} (25. Qe3 $1 $14) 25... Ne5 $1 $11 {[%emt 0:00:31]} 26. Qe2 {[%emt 0:07:16] Threatens to win with Nd4.} Bxg5+ $1 {[%emt 0:02:25]} 27. Rxg5 {[%emt 0:00:02]} f4 $1 {[%emt 0:00:46] aiming for ...f3.} 28. Rf5 {[%emt 0:04:12]} Qb6 {[%emt 0:10:31][%mdl 1024] Black has compensation.} 29. Rd1 {[%emt 0:06:18]} f3 {[%emt 0:01:23]} 30. Qd2 {[%emt 0:04:43]} Rfc7 {[%emt 0:14:13]} (30... Rxf5 31. exf5 Qb5 32. f6 $11) (30... Nc4 $15 31. Qd4 Qc7) 31. c3 $1 $36 {[%emt 0:05:17][%mdl 2048] White is pushing.} (31. Nd4 $2 Nc4 32. Qc3 Ne3 $19) 31... Rc4 {[%emt 0:01:50]} 32. Nd4 {[%emt 0:05:00][%cal Od2c2]} Ra4 {[%emt 0:00:12] [#] Black cannot hold the game after this.} (32... Qb4 $1 $11 33. Kc2 (33. Nxf3 $2 Rxc3+ 34. bxc3 Rxc3+ $19) 33... Rxd4 (33... g6 $2 34. Rf6 $18) 34. Qxd4 Rc4) 33. a3 $1 $18 {[%emt 0:02:04]} (33. Nxf3 $2 Nc4 34. a3 Nxd2 $19) 33... Nc4 $2 {[%emt 0:03:39]} (33... Rac4 {keeps fighting.} 34. h4 (34. Nxf3 Rxc3+ 35. bxc3 Qb3 $11) 34... R4c5) 34. Qc2 {[%emt 0:00:43][%cal Of5f3] Black must now prevent Rxf3!} Rxa3 {[%emt 0:00:32]} 35. bxa3 {[%emt 0:00:27]} Ne3 {[%emt 0:00:20]} 36. Qd3 {[%emt 0:01:54]} Qa5 {[%emt 0:00:07]} 37. Qxe3 {[%emt 0:00:40]} Rxc3+ {[%emt 0:00:05] [#]} 38. Qxc3 $3 {[%emt 0:00:14]} Qxc3+ {[%emt 0:00:02]} 39. Nc2 {[%emt 0:00:26]} b5 {[%emt 0:01:48] [#]} (39... Qc4 $142 40. Rxf3 Qxe4) 40. e5 $1 {[%emt 0:00:33][%cal Be4e5,Be5e6,Be6e7][%mdl 32] And now e6 would win.} g6 {[%emt 0:00:33]} (40... Qc4 41. Rxf3) 41. Rg1 {[%emt 0:00:28]} Kh7 {[%emt 0:00:36]} 42. Rf7+ {[%emt 0:00:12] White mates.} Kh6 {[%emt 0:00:23]} 43. e6 {[%emt 0:00:55]} Qc5 {[%emt 0:00:36]} 44. Re1 {[%emt 0:00:39]} f2 {[%emt 0:00:29] [#]} 45. Rxf2 $3 {[%emt 0:00:06][%mdl 512]} Qxf2 {[%emt 0:00:14]} (45... b4 46. e7) 46. e7 {[%emt 0:00:01]} Qf4+ {[%emt 0:00:32]} 47. Kb1 {[%emt 0:00:53] Weighted Error Value: White=0.12 (very precise) /Black=0.47.  Mistake:       	White=1     	Black=5      Inaccurate:     	White=2     	Black=2      OK:         	White=10    	Black=8      Best:        	White=4     	Black=3      Strong:       	White=1     	Black=4      Brilliant:      	White=2     	---} 1-0

[Event "American Cup Open Champions 2024"]
[Site "Saint Louis"]
[Date "2024.03.12"]
[Round "1.1"]
[White "Aronian, Levon"]
[Black "Sevian, Samuel"]
[Result "1/2-1/2"]
[ECO "A20"]
[WhiteElo "2722"]
[BlackElo "2697"]
[Annotator "TA"]
[PlyCount "75"]
[EventDate "2024.03.11"]
[EventType "k.o."]
[EventCountry "USA"]
[SourceTitle "playchess.com"]
[Source "ChessBase"]
[SourceQuality "1"]
[TimeControl "5400+30"]

{[%evp 15,75,28,26,29,29,17,37,26,23,24,31,20,24,19,18,0,6,0,0,0,0,0,6,0,35,28,22,35,58,36,47,44,48,41,52,41,46,30,48,38,38,38,38,38,38,38,38,22,38,12,39,15,39,16,38,0,3,0,38,0,5,0]} 1. c4 {[%emt 0:00:04]} e5 {[%emt 0:00:31]} 2. g3 {[%emt 0:00:06]} Nf6 {[%emt 0:02:32]} 3. Bg2 {[%emt 0:01:14]} d5 {[%emt 0:00:09]} 4. cxd5 {[%emt 0:00:06]} Nxd5 {[%emt 0:00:06]} 5. Nf3 {[%emt 0:00:06]} Nc6 {[%emt 0:00:13]} 6. O-O {[%emt 0:00:06]} Be7 {[%emt 0:02:16]} 7. d4 {[%emt 0:00:11]} e4 {[%emt 0:00:18]} 8. Ne5 {[%emt 0:00:05]} f5 {[%emt 0:00:08]} 9. Nxc6 {[%emt 0:02:08]} bxc6 {[%emt 0:01:24]} 10. Qc2 {[%emt 0:02:29]} Bd7 {[%emt 0:00:24][%cal Bc8d7,Bd7e6,Be6d5][%mdl 32]} 11. Nc3 {[%emt 0:03:48] White is slightly better.} O-O {[%emt 0:00:11]} 12. f3 {[%emt 0:00:18]} exf3 {[%emt 0:00:35]} 13. Bxf3 {[%emt 0:01:52]} Be6 {[%emt 0:00:53]} 14. Nxd5 {[%emt 0:06:55]} Bxd5 {[%emt 0:00:17]} 15. Be3 {[%emt 0:00:50]} (15. Bf4 $5) 15... Qd7 {[%emt 0:07:01]} 16. Rac1 {[%emt 0:00:19]} Bd6 {[%emt 0:05:48]} 17. Bf4 {[%emt 0:07:21]} Bxf4 {[%emt 0:02:09]} 18. Bxd5+ {[%emt 0:00:55]} cxd5 {[%emt 0:26:13]} 19. Rxf4 {[%emt 0:00:11]} Rf7 {[%emt 0:01:24]} 20. Qc6 {[%emt 0:03:29]} Qxc6 {[%emt 0:01:47]} 21. Rxc6 $11 {[%emt 0:00:06][%mdl 4096] Endgame. KRR-KRR} Rb8 {[%emt 0:00:17]} 22. Rc2 {[%emt 0:00:41]} Rb6 {[%emt 0:02:49]} 23. Rf3 {[%emt 0:03:31]} c6 {[%emt 0:00:51]} 24. Kf2 {[%emt 0:01:42]} Kf8 {[%emt 0:00:47]} 25. Rfc3 {[%emt 0:00:31]} Rf6 {[%emt 0:01:15]} 26. Ra3 {[%emt 0:00:31]} Rf7 {[%emt 0:00:29]} 27. Ke1 {[%emt 0:11:09]} Ke8 {[%emt 0:06:07]} 28. Kd2 {[%emt 0:05:05]} Kd8 {[%emt 0:04:12]} 29. Ra5 {[%emt 0:02:39]} Rfb7 {[%emt 0:00:33]} 30. b3 {[%emt 0:00:55]} Kd7 {[%emt 0:02:32]} 31. Kd3 {[%emt 0:04:04]} Kd6 {[%emt 0:00:27]} 32. e3 {[%emt 0:00:10]} g6 {[%emt 0:02:55]} 33. Kd2 {[%emt 0:00:37]} Re7 {[%emt 0:00:33]} 34. Rc1 {[%emt 0:00:29]} Rb8 {[%emt 0:02:03]} 35. Ra6 {[%emt 0:00:14]} Rb6 {[%emt 0:00:05]} 36. Ra5 {[%emt 0:00:04]} Rb8 {[%emt 0:00:04]} 37. Ra6 {[%emt 0:00:04]} Rb6 {[%emt 0:00:04]} 38. Ra5 {[%emt 0:00:13] Weighted Error Value: White=0.10 (very precise) /Black=0.07 (flawless) .  Inaccurate:     	White=3     	Black=2      OK:         	White=7     	Black=15} 1/2-1/2

[Event "American Cup Open Champions 2024"]
[Site "Saint Louis"]
[Date "2024.03.12"]
[Round "1.2"]
[White "Sevian, Samuel"]
[Black "Aronian, Levon"]
[Result "1/2-1/2"]
[ECO "D85"]
[WhiteElo "2697"]
[BlackElo "2722"]
[Annotator "TA"]
[PlyCount "48"]
[EventDate "2024.03.11"]
[EventType "k.o."]
[EventCountry "USA"]
[SourceTitle "playchess.com"]
[Source "ChessBase"]
[SourceQuality "1"]
[TimeControl "900+10"]

{[%evp 25,48,10,13,0,12,0,12,-20,-15,-17,-4,-26,-9,-40,-40,-47,-47,-18,-7,-9,0,-32,0,-8,0]} 1. c4 {[%emt 0:00:41]} g6 {[%emt 0:00:07]} 2. d4 {[%emt 0:00:07]} Nf6 {[%emt 0:00:02]} 3. Nc3 {[%emt 0:00:11]} d5 {[%emt 0:00:01]} 4. cxd5 {[%emt 0:00:02]} Nxd5 {[%emt 0:00:01]} 5. e4 {[%emt 0:00:01]} Nxc3 {[%emt 0:00:01]} 6. bxc3 {[%emt 0:00:01]} Bg7 {[%emt 0:00:01]} 7. Be3 {[%emt 0:00:15]} c5 {[%emt 0:00:02]} 8. Nf3 {[%emt 0:00:01]} Qa5 {[%emt 0:00:08]} 9. Qd2 {[%emt 0:00:03]} Nc6 {[%emt 0:00:07]} 10. Rb1 {[%emt 0:00:09]} a6 {[%emt 0:00:03]} 11. Rc1 {[%emt 0:00:02]} cxd4 {[%emt 0:00:01]} 12. cxd4 {[%emt 0:00:02]} Qxd2+ {[%emt 0:00:02]} 13. Kxd2 {[%emt 0:00:09]} e6 {[%emt 0:00:01]} 14. Bd3 {[%emt 0:02:50]} O-O {[%emt 0:00:06]} 15. Rc4 {[%emt 0:00:56]} Rd8 {[%emt 0:00:29]} 16. Bg5 {[%emt 0:01:01]} f6 {[%emt 0:00:45]} 17. Be3 {[%emt 0:00:09]} Bd7 {[%emt 0:00:01]} 18. h4 {[%emt 0:00:42]} Be8 {[%emt 0:00:20]} 19. Rb1 {[%emt 0:01:49]} b5 {[%emt 0:01:16]} 20. Rc3 {[%emt 0:00:48]} Bf8 {[%emt 0:00:32]} 21. Rcb3 {[%emt 0:01:31] Inhibits Bb4+.} Na5 {[%emt 0:01:44]} 22. Rc3 {[%emt 0:00:06]} Nc6 {[%emt 0:00:12]} 23. Rcb3 {[%emt 0:00:01] Wards off Bb4+} Na5 {[%emt 0:02:54]} 24. Rc3 {[%emt 0:00:01]} Nc6 {[%emt 0:00:02] Weighted Error Value: White=0.10 (very precise) /Black=0.08 (flawless) .  Inaccurate:     	White=2     	---        OK:         	White=6     	Black=2      Best:        	---       	Black=1} 1/2-1/2

[Event "American Cup Open Champions 2024"]
[Site "Saint Louis"]
[Date "2024.03.12"]
[Round "1.2"]
[White "Robson, Ray"]
[Black "Dominguez Perez, Leinier"]
[Result "1-0"]
[ECO "E53"]
[WhiteElo "2696"]
[BlackElo "2749"]
[Annotator "TA"]
[PlyCount "80"]
[EventDate "2024.03.11"]
[EventType "k.o."]
[EventCountry "USA"]
[SourceTitle "playchess.com"]
[Source "ChessBase"]
[SourceQuality "1"]
[TimeControl "900+10"]

{[%evp 12,80,5,8,0,7,7,13,4,14,6,0,25,40,25,35,35,37,27,15,12,19,13,8,14,9,12,10,93,98,100,97,120,118,127,116,110,127,118,113,116,110,114,115,118,118,118,111,116,112,103,119,157,103,109,0,149,143,164,161,158,150,184,99,214,113,179,188,184,153,179]} 1. d4 {[%emt 0:00:01]} Nf6 {[%emt 0:00:02]} 2. c4 {[%emt 0:00:01]} e6 {[%emt 0:00:02]} 3. Nc3 {[%emt 0:00:01]} Bb4 {[%emt 0:00:02]} 4. e3 {[%emt 0:00:02]} O-O {[%emt 0:00:07]} 5. Nf3 {[%emt 0:00:02]} c5 {[%emt 0:00:23]} 6. Bd3 {[%emt 0:00:02]} d5 {[%emt 0:00:01]} 7. cxd5 {[%emt 0:00:01]} exd5 {[%emt 0:00:01]} 8. dxc5 {[%emt 0:00:14]} Nbd7 {[%emt 0:00:01]} 9. Bd2 {[%emt 0:00:29]} Nxc5 {[%emt 0:00:02] Die Stellung ist ausgeglichen.} 10. Be2 {[%emt 0:00:02]} Ne6 {[%emt 0:00:02]} 11. Qb3 {[%emt 0:00:56]} Ba5 {[%emt 0:00:32]} 12. O-O {[%emt 0:00:32]} d4 {[%emt 0:00:10]} 13. exd4 {[%emt 0:00:25]} Nxd4 {[%emt 0:00:02]} 14. Nxd4 {[%emt 0:00:02]} Qxd4 {[%emt 0:00:02]} 15. Rad1 {[%emt 0:01:33]} Be6 {[%emt 0:01:31]} 16. Qb5 {[%emt 0:01:16]} Qb4 {[%emt 0:01:31]} (16... Bc7 {wäre vielleicht verwirrender.} 17. Rfe1 Qb6 18. Bf3 Rad8) 17. a3 {[%emt 0:06:55]} Qxb5 {[%emt 0:00:02]} 18. Nxb5 {[%emt 0:00:06]} Bxd2 {[%emt 0:03:50]} 19. Rxd2 {[%emt 0:00:02]} Rad8 {[%emt 0:00:35]} (19... h6 $11) 20. Rxd8 $16 {[%emt 0:00:47]} Rxd8 {[%emt 0:00:03]} 21. Nxa7 {[%emt 0:00:33]} Bb3 {[%emt 0:00:34]} ({Viel schwächer wäre} 21... Rd2 $6 22. Rd1 Rxd1+ 23. Bxd1 $14) 22. Rc1 {[%emt 0:00:50]} g6 {[%emt 0:00:31]} 23. Rc3 {[%emt 0:01:15]} Be6 {[%emt 0:00:02] [#]} 24. Rd3 {[%emt 0:01:12]} Re8 {[%emt 0:01:03] ...Bc4 ist eine echte Drohung.} 25. Kf1 {[%emt 0:01:20]} Bc4 {[%emt 0:00:55]} 26. Rd2 {[%emt 0:00:39]} Bxe2+ {[%emt 0:02:45]} 27. Rxe2 {[%emt 0:00:02][%mdl 4096] Endspiel. KRN-KRN} Rd8 {[%emt 0:00:01]} 28. Ke1 {[%emt 0:00:17] Verhindert Rd1+.} Rd5 {[%emt 0:00:02]} 29. f3 {[%emt 0:00:11]} Kf8 {[%emt 0:00:25]} 30. Rd2 {[%emt 0:00:09]} Rc5 {[%emt 0:01:57]} 31. b4 {[%emt 0:00:05]} Re5+ {[%emt 0:00:41]} 32. Re2 {[%emt 0:00:14]} (32. Kf2 $142) 32... Rd5 {[%emt 0:00:04]} 33. Rd2 {[%emt 0:00:10]} Re5+ $1 {[%emt 0:00:01]} 34. Kf2 {[%emt 0:00:01]} Nd5 {[%emt 0:00:19]} 35. Nc8 {[%emt 0:00:17]} Nc3 {[%emt 0:01:07]} 36. Nb6 {[%emt 0:00:09] Droht Nd7+ und aus.} Kg7 {[%emt 0:00:33]} 37. h4 {[%emt 0:00:14]} (37. a4 $18) 37... h5 {[%emt 0:00:26]} (37... Re6 $16 38. Nc4 Rc6) 38. Nc4 {[%emt 0:00:10]} ({Besser ist} 38. a4 $18) 38... Re6 {[%emt 0:00:10] [#]} (38... Re7 $16 {war angesagt.} 39. Nd6 Na4) 39. Rd7 $1 $18 {[%emt 0:00:10]} Re2+ {[%emt 0:00:33]} 40. Kf1 {[%emt 0:00:05][%cal Oc4d6]} Kf6 {[%emt 0:00:30] Gewichteter Fehlerwert: Weiß=0.12 (sehr präzise) /Schwarz=0.14 (sehr präzise) .  Fehler:       	Weiß=3     	Schwarz=3     Ungenau:       	---       	Schwarz=1     OK:         	Weiß=12    	Schwarz=8     Bester:       	Weiß=3     	---        Stark:        	Weiß=1     	Schwarz=1} 1-0